fUST/lending_fUST_20260117
["ID","MTS","AMOUNT","RATE_DAILY","PERIOD"]
[402213138,1768606254661,-500.0,0.00021917,3]
[402213139,1768606254670,-620.62719451,0.00021917,3]
[402213140,1768606254679,-535.55,0.00021917,3]
[402213141,1768606254688,-500.0,0.00021917,3]
[402213142,1768606254697,-503.86342678,0.00021917,3]
[402213143,1768606254706,-2935.53,0.00021917,3]
[402213144,1768606254716,-507.24,0.00021917,3]
[402213145,1768606254726,-672.51,0.00021917,3]
[402213146,1768606254736,-2562.85,0.00021917,3]
[402213147,1768606254745,-716.67,0.00021917,3]
[402213148,1768606254754,-500.0,0.00021917,3]
[402213149,1768606254763,-500.0,0.00021917,3]
[402213150,1768606254772,-1206.65,0.00021917,3]
[402213151,1768606254782,-500.0,0.00021917,3]
[402213152,1768606254792,-500.87994636,0.00021917,3]
[402213153,1768606254801,-1965.15,0.00021917,3]
[402213154,1768606254810,-500.0,0.00021917,3]
[402213155,1768606254818,-500.0,0.00021917,3]
[402213156,1768606254827,-500.0,0.00021917,3]
[402213157,1768606254837,-500.0,0.00021917,3]
[402213158,1768606254846,-2225.62,0.00021917,3]
[402213159,1768606254855,-500.0,0.00021917,3]
[402213160,1768606254863,-500.0,0.00021917,3]
[402213161,1768606254872,-500.0,0.00021917,3]
[402213162,1768606254881,-1014.11,0.00021917,3]
[402213163,1768606254890,-500.0,0.00021917,3]
[402213164,1768606254902,-500.0,0.00021917,3]
[402213165,1768606254911,-500.0,0.00021917,3]
[402213166,1768606254920,-534.52,0.00021917,3]
[402213167,1768606254929,-500.0,0.00021917,3]
[402213168,1768606254940,-500.0,0.00021917,3]
[402213169,1768606254949,-745.47,0.00021917,3]
[402213170,1768606254958,-870.56,0.00021917,3]
[402213171,1768606254968,-500.0,0.00021917,3]
[402213172,1768606254977,-500.0,0.00021917,3]
[402213173,1768606254986,-500.0,0.00021917,3]
[402213174,1768606254995,-500.0,0.00021917,3]
[402213175,1768606255004,-529.06831257,0.00021917,3]
[402213176,1768606255014,-1471.9,0.00021917,3]
[402213177,1768606255023,-500.0,0.00021917,3]
[402213178,1768606255032,-641.94,0.00021917,3]
[402213179,1768606255041,-500.0,0.00021917,3]
[402213180,1768606255050,-958.68,0.00021917,3]
[402213181,1768606255059,-500.0,0.00021917,3]
[402213182,1768606255068,-1251.47,0.00021917,3]
[402213183,1768606255077,-500.0,0.00021917,3]
[402213184,1768606255087,-500.0,0.00021917,3]
[402213185,1768606255096,-500.0,0.00021917,3]
[402213186,1768606255106,-1514.63,0.00021917,3]
[402213187,1768606255115,-500.0,0.00021917,3]
[402213188,1768606255124,-1010.64,0.00021917,3]
[402213189,1768606255133,-500.0,0.00021917,3]
[402213190,1768606255142,-500.0,0.00021917,3]
[402213191,1768606255151,-500.0,0.00021917,3]
[402213192,1768606255160,-1136.87,0.00021917,3]
[402213193,1768606255169,-500.0,0.00021917,3]
[402213194,1768606255178,-1742.45,0.00021917,3]
[402213195,1768606255187,-500.0,0.00021917,3]
[402213196,1768606255196,-8798.3,0.00021917,3]
[402213197,1768606255205,-500.0,0.00021917,3]
[402213198,1768606255215,-500.0,0.00021917,3]
[402213199,1768606255224,-967.4,0.00021917,3]
[402213200,1768606255233,-500.0,0.00021917,3]
[402213201,1768606255242,-1065.68,0.00021917,3]
[402213202,1768606255251,-500.0,0.00021917,3]
[402213203,1768606255260,-730.62,0.00021917,3]
[402213204,1768606255270,-500.0,0.00021917,3]
[402213205,1768606255280,-500.0,0.00021917,3]
[402213206,1768606255289,-500.0,0.00021917,3]
[402213207,1768606255298,-538.20646389,0.00021917,3]
[402213208,1768606255307,-500.0,0.00021917,3]
[402213209,1768606255316,-1136.85,0.00021917,3]
[402213210,1768606255325,-500.0,0.00021917,3]
[402213211,1768606255334,-1019.22,0.00021917,3]
[402213212,1768606255343,-544.79895519,0.00021917,3]
[402213213,1768606255352,-500.0,0.00021917,3]
[402213214,1768606255361,-500.0,0.00021917,3]
[402213215,1768606255371,-2175.53,0.00021917,3]
[402213216,1768606255380,-500.0,0.00021917,3]
[402213217,1768606255389,-500.0,0.00021917,3]
[402213218,1768606255398,-500.0,0.00021917,3]
[402213219,1768606255408,-165.19360221,0.00021917,3]
[402213220,1768606255417,-538.9586414,0.00021917,3]
[402213221,1768606255581,-715.38,0.00021917,3]
[402213222,1768606255592,-500.0,0.00021917,3]
[402213223,1768606255602,-569.66087106,0.00021917,3]
[402213224,1768606255612,-500.0,0.00021917,3]
[402213225,1768606255622,-500.0,0.00021917,3]
[402213226,1768606255631,-500.0,0.00021917,3]
[402213227,1768606255641,-500.0,0.00021917,3]
[402213228,1768606255650,-500.0,0.00021917,3]
[402213229,1768606255659,-1585.23,0.00021917,3]
[402213230,1768606255668,-500.0,0.00021917,3]
[402213231,1768606255678,-500.0,0.00021917,3]
[402213232,1768606255687,-500.0,0.00021917,3]
[402213233,1768606255696,-500.0,0.00021917,3]
[402213234,1768606255706,-500.0,0.00021917,3]
[402213235,1768606255715,-434.51958275,0.00021917,3]
[402213236,1768606255727,-500.0,0.00021917,3]
[402213237,1768606255736,-1070.68,0.00021917,3]
[402213238,1768606255747,-1543.79,0.00021917,3]
[402213239,1768606255757,-500.0,0.00021917,3]
[402213240,1768606255767,-787.13,0.00021917,3]
[402213241,1768606255776,-563.70421509,0.00021917,3]
[402213242,1768606255785,-500.0,0.00021917,3]
[402213243,1768606255795,-500.0,0.00021917,3]
[402213244,1768606255804,-500.0,0.00021917,3]
[402213245,1768606255813,-500.0,0.00021917,3]
[402213246,1768606255823,-500.0,0.00021917,3]
[402213247,1768606255832,-3984.85,0.00021917,3]
[402213248,1768606255842,-564.18,0.00021917,3]
[402213249,1768606255851,-500.0,0.00021917,3]
[402213250,1768606255860,-841.85,0.00021917,3]
[402213251,1768606255870,-500.0,0.00021917,3]
[402213252,1768606255879,-500.0,0.00021917,3]
[402213253,1768606255890,-500.0,0.00021917,3]
[402213254,1768606255901,-1386.93,0.00021917,3]
[402213255,1768606255911,-500.0,0.00021917,3]
[402213256,1768606255921,-593.53,0.00021917,3]
[402213257,1768606255931,-2942.71,0.00021917,3]
[402213258,1768606255940,-500.0,0.00021917,3]
[402213259,1768606255950,-664.42,0.00021917,3]
[402213260,1768606255960,-500.0,0.00021917,3]
[402213261,1768606255970,-1310.23,0.00021917,3]
[402213262,1768606255979,-1384.22,0.00021917,3]
[402213263,1768606255988,-500.0,0.00021917,2]
[402213264,1768606255998,-1718.24,0.00021917,3]
[402213265,1768606256007,-1493.78,0.00021917,3]
[402213266,1768606256017,-580.78,0.00021917,3]
[402213267,1768606256026,-500.0,0.00021917,3]
[402213268,1768606256036,-536.48,0.00021917,3]
[402213269,1768606256045,-1228.66,0.00021917,3]
[402213270,1768606256054,-500.0,0.00021917,3]
[402213271,1768606256063,-1627.08,0.00021917,3]
[402213272,1768606256074,-500.0,0.00021917,3]
[402213273,1768606256084,-2466.84,0.00021917,3]
[402213274,1768606256094,-500.0,0.00021917,3]
[402213275,1768606256105,-500.0,0.00021917,3]
[402213276,1768606256115,-1167.35,0.00021917,3]
[402213277,1768606256126,-500.0,0.00021917,3]
[402213278,1768606256135,-856.9,0.00021917,3]
[402213279,1768606256145,-713.13,0.00021917,3]
[402213280,1768606256157,-500.0,0.00021917,3]
[402213281,1768606256166,-500.0,0.00021917,3]
[402213282,1768606256176,-500.0,0.00021917,3]
[402213283,1768606256185,-500.0,0.00021917,3]
[402213284,1768606256195,-1591.45,0.00021917,3]
[402213285,1768606256205,-500.0,0.00021917,3]
[402213286,1768606256215,-2793.44,0.00021917,3]
[402213287,1768606256224,-500.0,0.00021917,3]
[402213288,1768606256233,-500.0,0.00021917,3]
[402213289,1768606256243,-836.47,0.00021917,3]
[402213290,1768606256252,-1145.41,0.00021917,3]
[402213291,1768606256261,-500.0,0.00021917,3]
[402213292,1768606256270,-826.03,0.00021917,3]
[402213293,1768606256279,-332.91217118,0.00021917,3]
[402213294,1768606256289,-557.14961665,0.00021917,3]
[402213295,1768606256298,-673.77,0.00021917,3]
[402213296,1768606256308,-1856.63,0.00021917,3]
[402213297,1768606256318,-500.0,0.00021917,3]
[402213298,1768606256328,-500.0,0.00021917,3]
[402213299,1768606256337,-500.0,0.00021917,3]
[402213300,1768606256346,-508.64993821,0.00021917,3]
[402213301,1768606256357,-500.0,0.00021917,3]
[402213302,1768606256366,-500.0,0.00021917,3]
[402213303,1768606256375,-528.9,0.00021917,3]
[402213304,1768606256384,-500.0,0.00021917,3]
[402213305,1768606256393,-1194.53,0.00021917,3]
[402213306,1768606256405,-500.0,0.00021917,3]
[402213307,1768606256417,-568.73,0.00021917,3]
[402213308,1768606256427,-500.2,0.00021917,3]
[402213309,1768606256436,-500.0,0.00021917,3]
[402213310,1768606256446,-523.14,0.00021917,3]
[402213311,1768606256456,-733.1,0.00021917,3]
[402213312,1768606256467,-500.0,0.00021917,3]
[402213313,1768606256476,-938.01,0.00021917,3]
[402213314,1768606256485,-1791.95,0.00021917,3]
[402213315,1768606256494,-1547.34,0.00021917,3]
[402213316,1768606256504,-500.0,0.00021917,3]
[402213317,1768606256514,-500.0,0.00021917,3]
[402213318,1768606256523,-665.41,0.00021917,3]
[402213319,1768606256533,-1226.67,0.00021917,3]
[402213320,1768606256543,-500.0,0.00021917,3]
[402213321,1768606256552,-1228.67,0.00021917,3]
[402213322,1768606256561,-500.0,0.00021917,3]
[402213323,1768606256571,-217.81700037,0.00021917,3]
[402213324,1768606256580,-500.0,0.00021917,3]
[402213325,1768606256589,-507.96482271,0.00021917,3]
[402213326,1768606256599,-500.0,0.00021917,3]
[402213327,1768606256608,-500.0,0.00021917,3]
[402213328,1768606256617,-500.0,0.00021917,3]
[402213329,1768606256626,-500.0,0.00021917,3]
[402213330,1768606256636,-500.0,0.00021917,3]
[402213331,1768606256645,-722.91,0.00021917,3]
[402213332,1768606256654,-307.51856445,0.00021917,3]
[402213333,1768606256663,-962.94,0.00021917,3]
[402213334,1768606256672,-500.0,0.00021917,3]
[402213335,1768606256681,-500.0,0.00021917,3]
[402213336,1768606256690,-642.347126,0.00021917,3]
[402213337,1768606256699,-500.0,0.00021917,3]
[402213338,1768606256708,-479.23437503,0.00021917,3]
[402213339,1768606256718,-500.0,0.00021917,3]
[402213340,1768606256728,-888.54,0.00021917,3]
[402213341,1768606256737,-656.08,0.00021917,3]
[402213342,1768606256746,-500.0,0.00021917,3]
[402213343,1768606256756,-500.0,0.00021917,3]
[402213344,1768606256765,-16346.06,0.00021917,3]
[402213345,1768606256775,-500.0,0.00021917,3]
[402213346,1768606256785,-1884.7,0.00021917,3]
[402213347,1768606256794,-523.98,0.00021917,3]
[402213348,1768606256803,-1409.14,0.00021917,3]
[402213349,1768606256813,-500.0,0.00021917,3]
[402213350,1768606256822,-509.56797809,0.00021917,3]
[402213351,1768606256831,-500.0,0.00021917,3]
[402213352,1768606256840,-569.58,0.00021917,3]
[402213353,1768606256848,-500.0,0.00021917,3]
[402213354,1768606256857,-500.0,0.00021917,3]
[402213355,1768606256866,-500.0,0.00021917,3]
[402213356,1768606256875,-1595.17,0.00021917,3]
[402213357,1768606256884,-500.0,0.00021917,3]
[402213358,1768606256897,-885.73,0.00021917,3]
[402213359,1768606256906,-500.0,0.00021917,3]
[402213360,1768606256915,-1698.69,0.00021917,3]
[402213361,1768606256924,-500.0,0.00021917,3]
[402213362,1768606256935,-500.0,0.00021917,3]
[402213363,1768606256943,-500.0,0.00021917,3]
[402213364,1768606256952,-500.0,0.00021917,3]
[402213365,1768606256962,-500.0,0.00021917,3]
[402213366,1768606256971,-500.0,0.00021917,3]
[402213367,1768606256980,-500.0,0.00021917,3]
[402213368,1768606256989,-500.0,0.00021917,3]
[402213369,1768606256998,-500.0,0.00021917,3]
[402213370,1768606257008,-703.27,0.00021917,3]
[402213371,1768606257017,-1141.76,0.00021917,3]
[402213372,1768606257027,-612.9,0.00021917,3]
[402213373,1768606257036,-1092.06,0.00021917,3]
[402213374,1768606257045,-500.0,0.00021917,2]
[402213375,1768606257054,-500.0,0.00021917,3]
[402213376,1768606257063,-1931.0,0.00021917,3]
[402213377,1768606257072,-500.0,0.00021917,3]
[402213378,1768606257082,-500.0,0.00021917,2]
[402213379,1768606257091,-1589.58,0.00021917,3]
[402213380,1768606257101,-1029.09,0.00021917,3]
[402213381,1768606257110,-500.0,0.00021917,2]
[402213382,1768606257120,-500.0,0.00021917,3]
[402213383,1768606257129,-500.0,0.00021917,3]
[402213384,1768606257138,-3302.77,0.00021917,3]
[402213385,1768606257148,-762.01,0.00021917,3]
[402213386,1768606257158,-500.0,0.00021917,3]
[402213387,1768606257168,-743.69,0.00021917,3]
[402213388,1768606257178,-899.14,0.00021917,3]
[402213389,1768606257189,-500.0,0.00021917,2]
[402213390,1768606257199,-1407.78,0.00021917,3]
[402213391,1768606257208,-500.0,0.00021917,3]
[402213392,1768606257219,-539.28519814,0.00021917,3]
[402213393,1768606257228,-775.15,0.00021917,3]
[402213394,1768606257237,-500.0,0.00021917,3]
[402213395,1768606257245,-500.0,0.00021917,3]
[402213396,1768606257255,-895.04,0.00021917,3]
[402213397,1768606257267,-500.0,0.00021917,3]
[402213398,1768606257276,-500.0,0.00021917,3]
[402213399,1768606257285,-1293.79,0.00021917,3]
[402213400,1768606257295,-500.0,0.00021917,3]
[402213401,1768606257304,-500.0,0.00021917,3]
[402213402,1768606257313,-500.0,0.00021917,3]
[402213403,1768606257322,-763.398784,0.00021918,2]
[402213404,1768606257331,-151.0,0.00021918,2]
[402213405,1768606257340,-155.406851,0.00021918,2]
[402213406,1768606257350,-151.0,0.00021918,2]
[402213407,1768606257359,-151.0,0.00021918,2]
[402213408,1768606257369,-151.0,0.00021918,2]
[402213409,1768606257378,-151.0,0.00021918,2]
[402213410,1768606257388,-151.0,0.00021918,2]
[402213411,1768606257397,-151.0,0.00021918,2]
[402213412,1768606257407,-257.691257,0.00021918,2]
[402213413,1768606257416,-181.511821,0.00021918,2]
[402213414,1768606257425,-181.511821,0.00021918,2]
[402213415,1768606257434,-181.511821,0.00021918,2]
[402213416,1768606257444,-181.511821,0.00021918,2]
[402213417,1768606257453,-181.511821,0.00021918,2]
[402213418,1768606257463,-181.511821,0.00021918,2]
[402213419,1768606257472,-181.511821,0.00021918,2]
[402213420,1768606257482,-181.511821,0.00021918,2]
[402213421,1768606257491,-181.511821,0.00021918,2]
[402213422,1768606257500,-181.511821,0.00021918,2]
[402213423,1768606257510,-181.511821,0.00021918,2]
[402213424,1768606257520,-181.511821,0.00021918,2]
[402213425,1768606257529,-181.511821,0.00021918,2]
[402213426,1768606257539,-181.511821,0.00021918,2]
[402213427,1768606257548,-181.511821,0.00021918,2]
[402213428,1768606257557,-181.511821,0.00021918,2]
[402213429,1768606257567,-181.511821,0.00021918,2]
[402213430,1768606257576,-181.511821,0.00021918,2]
[402213431,1768606257585,-181.511821,0.00021918,2]
[402213432,1768606257595,-181.511828,0.00021918,2]
[402213433,1768606257604,-189.511198,0.00021918,2]
[402213434,1768606257615,-151.0,0.00021918,2]
[402213435,1768606257626,-151.0,0.00021918,2]
[402213436,1768606257635,-235.182336,0.00021918,2]
[402213437,1768606257644,-635.216406,0.00021918,2]
[402213438,1768606257653,-635.216406,0.00021918,2]
[402213439,1768606257663,-635.216406,0.00021918,2]
[402213440,1768606257671,-635.216406,0.00021918,2]
[402213441,1768606257680,-635.216406,0.00021918,2]
[402213442,1768606257689,-635.216406,0.00021918,2]
[402213443,1768606257698,-635.216406,0.00021918,2]
[402213444,1768606257707,-635.216406,0.00021918,2]
[402213445,1768606257716,-635.216406,0.00021918,2]
[402213446,1768606257726,-635.216406,0.00021918,2]
[402213447,1768606257735,-635.216406,0.00021918,2]
[402213448,1768606257744,-1868.229357,0.00021918,2]
[402213449,1768606257753,-635.216406,0.00021918,2]
[402213450,1768606257762,-635.216406,0.00021918,2]
[402213451,1768606257771,-1868.229357,0.00021918,2]
[402213452,1768606257780,-1868.229357,0.00021918,2]
[402213453,1768606257789,-635.216406,0.00021918,2]
[402213454,1768606257799,-1868.229357,0.00021918,2]
[402213455,1768606257808,-635.216406,0.00021918,2]
[402213456,1768606257819,-1868.229357,0.00021918,2]
[402213457,1768606257828,-635.216406,0.00021918,2]
[402213458,1768606257837,-1868.229357,0.00021918,2]
[402213459,1768606257846,-635.216406,0.00021918,2]
[402213460,1768606257856,-1868.229357,0.00021918,2]
[402213461,1768606257865,-635.216406,0.00021918,2]
[402213462,1768606257876,-1868.229357,0.00021918,2]
[402213463,1768606257885,-635.216406,0.00021918,2]
[402213464,1768606257898,-1868.229357,0.00021918,2]
[402213465,1768606257908,-635.216401,0.00021918,2]
[402213466,1768606258052,-1868.229357,0.00021918,2]
[402213467,1768606258074,-1868.229357,0.00021918,2]
[402213468,1768606258083,-1868.229357,0.00021918,2]
[402213469,1768606258092,-1868.229357,0.00021918,2]
[402213470,1768606258101,-1868.229357,0.00021918,2]
[402213471,1768606258111,-1868.229357,0.00021918,2]
[402213472,1768606258121,-1868.229357,0.00021918,2]
[402213473,1768606258132,-1868.229357,0.00021918,2]
[402213474,1768606258141,-1868.229357,0.00021918,2]
[402213475,1768606258151,-1868.229357,0.00021918,2]
[402213476,1768606258160,-1868.229353,0.00021918,2]
[402213477,1768606258170,-151.0,0.00021918,2]
[402213478,1768606258179,-151.0,0.00021918,2]
[402213479,1768606258188,-151.0,0.00021918,2]
[402213480,1768606258198,-151.0,0.00021918,2]
[402213481,1768606258207,-151.0,0.00021918,2]
[402213482,1768606258220,-151.0,0.00021918,2]
[402213483,1768606258229,-151.0,0.00021918,2]
[402213484,1768606258239,-151.0,0.00021918,2]
[402213485,1768606258248,-161.721149,0.00021918,2]
[402213486,1768606258257,-151.0,0.00021918,2]
[402213487,1768606258266,-151.0,0.00021918,2]
[402213488,1768606258275,-224.619345,0.00021918,2]
[402213489,1768606258284,-151.0,0.00021918,2]
[402213490,1768606258293,-151.0,0.00021918,2]
[402213491,1768606258303,-151.0,0.00021918,2]
[402213492,1768606258312,-151.0,0.00021918,2]
[402213493,1768606258321,-275.8274,0.00021918,2]
[402213494,1768606258330,-151.0,0.00021918,2]
[402213495,1768606258339,-151.0,0.00021918,2]
[402213496,1768606258348,-151.0,0.00021918,2]
[402213497,1768606258357,-151.0,0.00021918,2]
[402213498,1768606258366,-151.0,0.00021918,2]
[402213499,1768606258376,-226.926693,0.00021918,2]
[402213500,1768606258385,-151.0,0.00021918,2]
[402213501,1768606258394,-151.0,0.00021918,2]
[402213502,1768606258403,-151.0,0.00021918,2]
[402213503,1768606258414,-157.15858,0.00021918,2]
[402213504,1768606258423,-235.448979,0.00021918,2]
[402213505,1768606258432,-235.448979,0.00021918,2]
[402213506,1768606258441,-235.448979,0.00021918,2]
[402213507,1768606258451,-235.448979,0.00021918,2]
[402213508,1768606258460,-235.448979,0.00021918,2]
[402213509,1768606258469,-235.448979,0.00021918,2]
[402213510,1768606258478,-235.448979,0.00021918,2]
[402213511,1768606258487,-235.448979,0.00021918,2]
[402213512,1768606258497,-235.448979,0.00021918,2]
[402213513,1768606258506,-235.448979,0.00021918,2]
[402213514,1768606258515,-235.448979,0.00021918,2]
[402213515,1768606258524,-235.448979,0.00021918,2]
[402213516,1768606258533,-235.448979,0.00021918,2]
[402213517,1768606258542,-235.448979,0.00021918,2]
[402213518,1768606258551,-235.448979,0.00021918,2]
[402213519,1768606258560,-235.448979,0.00021918,2]
[402213520,1768606258570,-235.448979,0.00021918,2]
[402213521,1768606258579,-235.448979,0.00021918,2]
[402213522,1768606258588,-235.448979,0.00021918,2]
[402213523,1768606258597,-235.448975,0.00021918,2]
[402213524,1768606258606,-151.0,0.00021918,2]
[402213525,1768606258615,-151.0,0.00021918,2]
[402213526,1768606258624,-185.826603,0.00021918,2]
[402213527,1768606258633,-151.0,0.00021918,2]
[402213528,1768606258642,-151.0,0.00021918,2]
[402213529,1768606258651,-151.0,0.00021918,2]
[402213530,1768606258660,-151.0,0.00021918,2]
[402213531,1768606258669,-151.0,0.00021918,2]
[402213532,1768606258678,-151.0,0.00021918,2]
[402213533,1768606258688,-151.0,0.00021918,2]
[402213534,1768606258699,-251.996074,0.00021918,2]
[402213535,1768606258709,-151.0,0.00021918,2]
[402213536,1768606258720,-160.699575,0.00021918,2]
[402213537,1768606258730,-172.708176,0.00021918,2]
[402213538,1768606258740,-151.0,0.00021918,2]
[402213539,1768606258749,-151.0,0.00021918,2]
[402213540,1768606258758,-151.0,0.00021918,2]
[402213541,1768606258767,-151.0,0.00021918,2]
[402213542,1768606258776,-151.0,0.00021918,2]
[402213543,1768606258785,-151.0,0.00021918,2]
[402213544,1768606258794,-192.959608,0.00021918,2]
[402213545,1768606258803,-264.497556,0.00021918,2]
[402213546,1768606258811,-264.497556,0.00021918,2]
[402213547,1768606258820,-264.497556,0.00021918,2]
[402213548,1768606258829,-264.497556,0.00021918,2]
[402213549,1768606258838,-264.497556,0.00021918,2]
[402213550,1768606258847,-264.497556,0.00021918,2]
[402213551,1768606258855,-264.497556,0.00021918,2]
[402213552,1768606258864,-264.497556,0.00021918,2]
[402213553,1768606258873,-264.497556,0.00021918,2]
[402213554,1768606258882,-264.497556,0.00021918,2]
[402213555,1768606258895,-264.497556,0.00021918,2]
[402213556,1768606258904,-264.497556,0.00021918,2]
[402213557,1768606258913,-264.497556,0.00021918,2]
[402213558,1768606258922,-264.497556,0.00021918,2]
[402213559,1768606258930,-264.497556,0.00021918,2]
[402213560,1768606258941,-264.497556,0.00021918,2]
[402213561,1768606258950,-264.497556,0.00021918,2]
[402213562,1768606258959,-264.497556,0.00021918,2]
[402213563,1768606258968,-264.497556,0.00021918,2]
[402213564,1768606258977,-264.49756,0.00021918,2]
[402213565,1768606258986,-151.0,0.00021918,2]
[402213566,1768606258995,-151.166975,0.00021918,2]
[402213567,1768606259004,-151.0,0.00021918,2]
[402213568,1768606259013,-151.0,0.00021918,2]
[402213569,1768606259023,-151.0,0.00021918,2]
[402213570,1768606259032,-151.0,0.00021918,2]
[402213571,1768606259041,-151.0,0.00021918,2]
[402213572,1768606259051,-151.0,0.00021918,2]
[402213573,1768606259060,-151.0,0.00021918,2]
[402213574,1768606259069,-151.0,0.00021918,2]
[402213575,1768606259078,-151.0,0.00021918,2]
[402213576,1768606259087,-156.03427,0.00021918,2]
[402213577,1768606259097,-151.0,0.00021918,2]
[402213578,1768606259106,-151.0,0.00021918,2]
[402213579,1768606259115,-190.141027,0.00021918,2]
[402213580,1768606259124,-154.149151,0.00021918,2]
[402213581,1768606259133,-286.660722,0.00021918,2]
[402213582,1768606259142,-286.660722,0.00021918,2]
[402213583,1768606259151,-286.660722,0.00021918,2]
[402213584,1768606259160,-286.660722,0.00021918,2]
[402213585,1768606259170,-286.660722,0.00021918,2]
[402213586,1768606259179,-286.660722,0.00021918,2]
[402213587,1768606259188,-286.660722,0.00021918,2]
[402213588,1768606259197,-286.660722,0.00021918,2]
[402213589,1768606259206,-286.660722,0.00021918,2]
[402213590,1768606259215,-286.660722,0.00021918,2]
[402213591,1768606259224,-286.660722,0.00021918,2]
[402213592,1768606259232,-286.660722,0.00021918,2]
[402213593,1768606259242,-286.660722,0.00021918,2]
[402213594,1768606259252,-286.660722,0.00021918,2]
[402213595,1768606259261,-286.660722,0.00021918,2]
[402213596,1768606259270,-286.660722,0.00021918,2]
[402213597,1768606259279,-286.660722,0.00021918,2]
[402213598,1768606259287,-286.660722,0.00021918,2]
[402213599,1768606259296,-286.660722,0.00021918,2]
[402213600,1768606259305,-286.660712,0.00021918,2]
[402213601,1768606259314,-151.0,0.00021918,2]
[402213602,1768606259323,-151.0,0.00021918,2]
[402213603,1768606259331,-151.0,0.00021918,2]
[402213604,1768606259341,-153.625144,0.00021918,2]
[402213605,1768606259350,-151.0,0.00021918,2]
[402213606,1768606259359,-151.0,0.00021918,2]
[402213607,1768606259368,-151.0,0.00021918,2]
[402213608,1768606259377,-151.0,0.00021918,2]
[402213609,1768606259386,-212.612176,0.00021918,2]
[402213610,1768606259395,-151.0,0.00021918,2]
[402213611,1768606259403,-151.0,0.00021918,2]
[402213612,1768606259412,-151.0,0.00021918,2]
[402213613,1768606259421,-151.0,0.00021918,2]
[402213614,1768606259430,-151.0,0.00021918,2]
[402213615,1768606259439,-257.81294,0.00021918,2]
[402213616,1768606259448,-151.0,0.00021918,2]
[402213617,1768606259457,-151.0,0.00021918,2]
[402213618,1768606259466,-159.231334,0.00021918,2]
[402213619,1768606259475,-193.827356,0.00021918,2]
[402213620,1768606259485,-193.827356,0.00021918,2]
[402213621,1768606259494,-151.0,0.00021918,2]
[402213622,1768606259503,-193.827356,0.00021918,2]
[402213623,1768606259512,-213.434932,0.00021918,2]
[402213624,1768606259522,-193.827356,0.00021918,2]
[402213625,1768606259531,-716.988793,0.00021918,2]
[402213626,1768606259540,-193.827356,0.00021918,2]
[402213627,1768606259549,-716.988793,0.00021918,2]
[402213628,1768606259559,-193.827356,0.00021918,2]
[402213629,1768606259568,-716.988793,0.00021918,2]
[402213630,1768606259577,-193.827356,0.00021918,2]
[402213631,1768606259586,-716.988793,0.00021918,2]
[402213632,1768606259595,-193.827356,0.00021918,2]
[402213633,1768606259604,-716.988793,0.00021918,2]
[402213634,1768606259615,-193.827356,0.00021918,2]
[402213635,1768606259624,-716.988793,0.00021918,2]
[402213636,1768606259633,-193.827356,0.00021918,2]
[402213637,1768606259643,-716.988793,0.00021918,2]